bitfinex/quotes_BTCUSD_20250224
["timestamp","ask_amount","ask_price","bid_price","bid_amount"]
[1740358871995,0.69720285,96425.0,96424.0,2.2e-07]
[1740358872426,0.70683242,96425.0,96424.0,2.2e-07]
[1740358872654,0.69891242,96425.0,96424.0,2.2e-07]
[1740358875394,0.155598,96402.0,96401.0,0.0008505]
[1740358875594,0.155598,96402.0,96401.0,0.00869067]
[1740358877307,0.20744,96413.0,96401.0,0.00869067]
[1740358877510,0.155598,96402.0,96401.0,0.00869067]
[1740358877865,0.16593982,96402.0,96401.0,0.00869067]
[1740358878464,0.328,96414.0,96402.0,0.1237]
[1740358878690,0.15,96410.0,96402.0,0.1237]
[1740358878895,0.328,96414.0,96403.0,0.11043322]
[1740358879239,0.01018041,96414.0,96404.0,0.00124463]
[1740358879533,0.207417,96424.0,96405.0,0.10264569]
[1740358879732,0.001701,96425.0,96414.0,0.16551629]
[1740358879916,0.001701,96425.0,96415.0,0.18154569]
[1740358880139,0.155568,96421.0,96415.0,0.18932728]
[1740358880318,0.001701,96425.0,96415.0,0.18932728]
[1740358880625,0.155575,96416.0,96415.0,0.06668159]
[1740358880956,0.155575,96416.0,96415.0,0.0589]
[1740358881162,0.155575,96417.0,96415.0,0.0589]
[1740358881545,0.155574,96417.0,96415.0,0.0589]
[1740358881751,0.207425,96421.0,96415.0,0.0589]
[1740358881995,0.01195014,96425.0,96415.0,0.0589]
[1740358882196,0.155574,96417.0,96415.0,0.0589]
[1740358882456,0.155574,96417.0,96416.0,0.00777543]
[1740358882656,0.155574,96417.0,96415.0,0.0589]
[1740358884694,0.155595,96404.0,96403.0,0.0795]
[1740358884830,0.155595,96404.0,96403.0,0.18214569]
[1740358885966,0.155594,96405.0,96403.0,0.18214569]
[1740358886172,0.155594,96405.0,96403.0,0.18993188]
[1740358887038,0.155594,96405.0,96403.0,0.19317899]
[1740358887551,0.155595,96404.0,96403.0,0.19317899]
[1740358887960,0.155595,96404.0,96403.0,0.0905333]
[1740358888403,0.328,96422.0,96403.0,0.0905333]
[1740358888648,0.207425,96420.0,96403.0,0.0905333]
[1740358888856,0.34173,96421.0,96404.0,0.10264569]
[1740358888857,0.15,96421.0,96404.0,0.10264569]
[1740358889058,0.15,96421.0,96404.0,0.11042914]
[1740358889287,0.15,96419.0,96404.0,0.11042914]
[1740358889511,0.155591,96407.0,96404.0,0.11042914]
[1740358890646,0.207449,96410.0,96404.0,0.11042914]
[1740358890854,0.15559,96407.0,96404.0,0.11042914]
[1740358892087,0.155592,96406.0,96404.0,0.11042914]
[1740358892302,0.155592,96406.0,96405.0,0.00324719]
[1740358892481,0.155592,96406.0,96405.0,0.11367773]
[1740358892907,0.155592,96406.0,96405.0,0.01103204]
[1740358893242,0.155592,96406.0,96405.0,0.00324719]
[1740358894112,0.305592,96406.0,96405.0,0.00324719]
[1740358894515,0.935212,96406.0,96405.0,0.00324719]
[1740358895879,0.155598,96402.0,96401.0,0.00090396]
[1740358897304,0.155596,96403.0,96401.0,0.00090396]
[1740358897442,0.15,96409.0,96401.0,0.00090396]
[1740358897860,0.155598,96402.0,96401.0,0.00090396]
[1740358905909,0.328,96410.0,96401.0,0.10354965]
[1740358906114,0.15559,96408.0,96402.0,0.18144569]
[1740358906266,0.15559,96408.0,96402.0,0.18925096]
[1740358907460,0.15559,96407.0,96402.0,0.18925096]
[1740358907662,0.15559,96407.0,96402.0,0.18144569]
[1740358907923,0.155588,96409.0,96403.0,0.00780444]
[1740358908123,0.155589,96408.0,96404.0,0.10264569]
[1740358908437,0.155587,96410.0,96404.0,0.1104493]
[1740358908637,0.155587,96409.0,96404.0,0.1104493]
[1740358909206,0.15,96413.0,96404.0,0.1104493]
[1740358909411,0.155582,96412.0,96404.0,0.1104493]
[1740358909605,0.15,96413.0,96404.0,0.1104493]
[1740358910144,0.207445,96411.0,96404.0,0.1104493]
[1740358910316,0.155589,96408.0,96404.0,0.1104493]
[1740358910532,0.155589,96408.0,96405.0,0.00324723]
[1740358910739,0.155589,96408.0,96406.0,0.10264569]
[1740358910904,0.155589,96408.0,96406.0,0.11044765]
[1740358911915,0.155589,96408.0,96407.0,0.00324723]
[1740358912152,0.155587,96409.0,96407.0,0.01104836]
[1740358912740,0.00771986,96413.0,96407.0,0.01104836]
[1740358912944,0.15771986,96413.0,96407.0,0.01104836]
[1740358913150,0.00771986,96413.0,96407.0,0.01104836]
[1740358913829,0.00771986,96413.0,96407.0,0.00780113]
[1740358914025,0.0017008,96415.0,96409.0,0.0756]
[1740358914191,0.0017008,96415.0,96408.0,0.15014569]
[1740358914192,0.0017008,96415.0,96414.0,0.231179]
[1740358914422,0.0017008,96415.0,96414.0,0.38132469]
[1740358914626,0.0017008,96415.0,96414.0,0.38910133]
[1740358916330,0.0017008,96415.0,96414.0,0.39884036]
[1740358916937,0.0027008,96415.0,96414.0,0.40084036]
[1740358917143,0.0017008,96415.0,96414.0,0.39884036]
[1740358917335,0.0017008,96415.0,96414.0,0.40284036]
[1740358917537,0.0027008,96415.0,96414.0,0.40284036]
[1740358918308,0.0017008,96415.0,96414.0,0.39884036]
[1740358919458,0.0027008,96415.0,96414.0,0.40284036]
[1740358919682,0.0027008,96415.0,96414.0,0.39634767]
[1740358919902,0.0017008,96415.0,96414.0,0.39234767]
[1740358920083,0.0027008,96415.0,96414.0,0.39634767]
[1740358922942,0.0017008,96415.0,96414.0,0.39234767]
[1740358923141,0.0027008,96415.0,96414.0,0.39634767]
[1740358923681,0.0017008,96415.0,96414.0,0.39234767]
[1740358923874,0.0027008,96415.0,96414.0,0.41088852]
[1740358924888,0.0027008,96415.0,96414.0,0.56738121]
[1740358926139,0.0027008,96415.0,96414.0,0.58230121]
[1740358926317,0.0017008,96415.0,96414.0,0.57130121]
[1740358926827,0.0017008,96415.0,96414.0,0.56480852]
[1740358927010,0.0017008,96415.0,96414.0,0.89010852]
[1740358927214,0.0017008,96415.0,96414.0,0.89710852]
[1740358927437,0.0017008,96415.0,96414.0,0.89095892]
[1740358927832,0.0017008,96415.0,96414.0,0.89795892]
[1740358928335,0.0017008,96415.0,96414.0,0.88199076]
[1740358928955,0.0017008,96415.0,96414.0,0.87499076]
[1740358929351,0.0017008,96415.0,96414.0,0.88199076]
[1740358929589,0.0017008,96415.0,96414.0,0.87499076]
[1740358929988,0.0017008,96415.0,96414.0,0.88199076]
[1740358930718,0.0017008,96415.0,96414.0,0.87549807]
[1740358933045,0.0017008,96415.0,96414.0,0.55019807]
[1740358934979,0.0017008,96415.0,96414.0,0.40019807]
[1740358935752,0.0017008,96415.0,96414.0,0.39319807]
[1740358936770,0.0017008,96415.0,96414.0,0.40019807]
[1740358937028,0.0017008,96415.0,96414.0,0.39319807]
[1740358937279,0.0017008,96415.0,96414.0,0.40019807]
[1740358937736,0.0017008,96415.0,96414.0,0.40669076]
[1740358942482,0.0017008,96415.0,96414.0,0.58677365]
[1740358942991,0.0017008,96415.0,96414.0,0.57977365]
[1740358943433,0.0017008,96415.0,96414.0,0.58677365]
[1740358943616,0.0017008,96415.0,96414.0,0.94507365]
[1740358943907,8e-07,96415.0,96414.0,0.98440983]
[1740358944587,0.001701,96448.0,96447.0,0.155525]
[1740358944821,0.001701,96448.0,96447.0,0.25941471]
[1740358945036,0.001701,96448.0,96447.0,0.26584037]
[1740358945880,0.00212889,96448.0,96447.0,0.2755794]
[1740358946134,0.00212889,96448.0,96447.0,0.2815794]
[1740358947326,0.00212889,96448.0,96447.0,0.27508671]
[1740358948277,0.00212889,96448.0,96447.0,0.26908671]
[1740358948495,0.00212889,96448.0,96447.0,0.11356171]
[1740358948717,0.00212889,96448.0,96447.0,0.12056171]
[1740358948933,0.15765289,96448.0,96447.0,0.12056171]
[1740358949152,0.15765289,96448.0,96447.0,0.01024634]
[1740358949357,0.15765289,96448.0,96447.0,0.00324634]
[1740358949720,0.15765289,96448.0,96447.0,0.00924634]
[1740358949936,0.15765289,96448.0,96447.0,0.00324634]
[1740358950405,0.15765289,96448.0,96447.0,0.00724634]
[1740358950584,0.00212889,96448.0,96447.0,0.10664569]
[1740358950993,0.00212889,96448.0,96447.0,0.11431079]
[1740358952475,0.00212889,96448.0,96447.0,0.0116651]
[1740358952684,0.00212889,96448.0,96447.0,0.004]
[1740358953609,0.00212889,96448.0,96438.0,0.16551629]
[1740358953819,0.00212889,96448.0,96439.0,0.10264569]
[1740358954020,0.15765289,96448.0,96439.0,0.11155446]
[1740358954292,0.155535,96441.0,96439.0,0.11031037]
[1740358954879,0.155535,96441.0,96439.0,0.10264569]
[1740358955437,0.155535,96441.0,96440.0,0.00324599]
[1740358955644,0.155535,96441.0,96440.0,0.10589168]
[1740358956060,0.155535,96441.0,96440.0,0.11355948]
[1740358956532,0.155535,96441.0,96440.0,0.10989168]
[1740358958911,0.155534,96442.0,96440.0,0.10989168]
[1740358959115,0.00212889,96448.0,96440.0,0.10989168]
[1740358959352,0.155535,96441.0,96440.0,0.10989168]
[1740358959763,0.155535,96441.0,96440.0,0.10589168]
[1740358960143,0.155535,96441.0,96440.0,0.11356438]
[1740358961130,0.155535,96441.0,96440.0,0.11656438]
[1740358961577,0.00212889,96448.0,96440.0,0.11656438]
[1740358961578,0.00212889,96448.0,96440.0,0.11356438]
[1740358961778,0.00212889,96448.0,96441.0,0.10264569]
[1740358962156,0.00212889,96448.0,96447.0,0.155525]
[1740358962333,0.00212889,96448.0,96447.0,0.0076683]
[1740358962537,0.00212889,96448.0,96447.0,0.10264569]
[1740358962739,0.00212889,96448.0,96447.0,0.11031057]
[1740358963175,0.00212889,96448.0,96447.0,0.11355656]
[1740358964478,0.00212889,96448.0,96447.0,0.11755656]
[1740358965772,0.00212889,96448.0,96447.0,0.11355656]
[1740358966004,0.00212889,96448.0,96447.0,0.11555656]
[1740358966197,0.00212889,96448.0,96447.0,0.10789168]
[1740358966336,0.00212889,96448.0,96447.0,0.11554192]
[1740358967283,0.00212889,96448.0,96447.0,0.11354192]
[1740358967687,0.00212889,96448.0,96447.0,0.11554192]
[1740358967846,0.15765289,96448.0,96447.0,0.11554192]
[1740358968448,0.15765289,96448.0,96447.0,0.11354192]
[1740358968661,0.15765289,96448.0,96447.0,0.11654192]
[1740358968865,0.15765289,96448.0,96447.0,0.10889168]
[1740358969064,0.15765289,96448.0,96447.0,0.11654275]
[1740358969283,0.15765289,96448.0,96447.0,0.10889168]
[1740358969488,0.15765289,96448.0,96447.0,0.11654275]
[1740358969683,0.15765289,96448.0,96447.0,0.10889168]
[1740358969884,0.15765289,96448.0,96447.0,0.11654275]
[1740358975478,0.15765289,96448.0,96447.0,0.11354275]
[1740358975923,0.15765289,96448.0,96447.0,0.10589168]
[1740358976890,0.15765289,96448.0,96447.0,0.00524599]
[1740358977091,0.15765289,96448.0,96447.0,0.00324599]
[1740358977442,0.15765289,96448.0,96447.0,0.00424599]
[1740358978696,0.15765289,96448.0,96447.0,0.00324599]
[1740358979151,0.155538,96439.0,96438.0,0.16551629]
[1740358979358,0.155538,96439.0,96438.0,0.10264569]
[1740358979560,0.155538,96439.0,96438.0,0.11030086]
[1740358979695,0.155538,96439.0,96438.0,0.10264569]
[1740358980517,0.155538,96439.0,96438.0,0.10789175]
[1740358982566,0.155538,96439.0,96438.0,0.00524606]
[1740358983695,0.305538,96439.0,96438.0,0.00324606]
[1740358984161,0.305538,96439.0,96438.0,0.00424606]
[1740358984575,0.155553,96430.0,96429.0,0.16551629]
[1740358984779,0.155553,96430.0,96424.0,0.0008501]
[1740358984961,0.207393,96436.0,96429.0,0.00767308]
[1740358985098,0.155548,96434.0,96426.0,0.16551629]
[1740358985301,0.1273,96449.0,96430.0,0.00767225]
[1740358985508,0.155544,96436.0,96433.0,0.16551629]
[1740358985706,0.207376,96443.0,96434.0,0.00766894]
[1740358985912,0.0017002,96439.0,96434.0,0.10264569]
[1740358986325,0.0017002,96439.0,96435.0,0.00767678]
[1740358986562,0.0017002,96439.0,96436.0,0.10264569]
[1740358987103,0.0017002,96439.0,96437.0,0.00767512]
[1740358987311,0.0017002,96439.0,96438.0,0.10264569]
[1740358987591,0.0017002,96439.0,96438.0,0.11031999]
[1740358988752,0.0017002,96439.0,96438.0,0.11331999]
[1740358990263,0.0017002,96439.0,96438.0,0.11656601]
[1740358991653,0.0017002,96439.0,96438.0,0.11331999]
[1740358991806,0.1572382,96439.0,96438.0,0.11331999]
[1740358992009,0.1572382,96439.0,96438.0,0.11031999]
[1740358992209,0.1572382,96439.0,96438.0,0.11331999]
[1740358992426,0.0017002,96439.0,96438.0,0.11331999]
[1740358993015,0.1572382,96439.0,96438.0,0.11031999]
[1740358993592,0.1572382,96439.0,96438.0,0.11231999]
[1740358994632,0.1572382,96439.0,96438.0,0.11031999]
[1740358995070,0.1572382,96439.0,96438.0,0.11131999]
[1740358995918,0.1572382,96439.0,96438.0,0.11456619]
[1740358997889,0.1572382,96439.0,96438.0,0.0119205]
[1740358998313,0.1572382,96439.0,96438.0,0.0042462]
[1740358998889,0.1572382,96439.0,96438.0,0.0032462]
[1740358999107,0.1572382,96439.0,96438.0,0.0042462]
[1740358999313,0.0017002,96439.0,96424.0,0.0008501]
[1740358999522,0.207403,96431.0,96425.0,0.10264569]
[1740358999726,0.0017002,96439.0,96425.0,0.1104725]
[1740359000348,0.155559,96426.0,96425.0,0.1104725]
[1740359000942,0.155561,96425.0,96424.0,0.0008501]
[1740359002511,0.1660253,96425.0,96424.0,0.0008501]
[1740359003040,0.1660253,96425.0,96424.0,0.0038501]
[1740359004853,0.1660253,96425.0,96424.0,0.0008501]
[1740359006311,0.1660253,96425.0,96424.0,0.00873168]
[1740359006517,0.1660253,96425.0,96424.0,0.0018501]
[1740359008612,0.1660253,96425.0,96424.0,0.0097292]
[1740359008613,0.0104643,96425.0,96424.0,0.0097292]
[1740359008809,0.20741,96427.0,96424.0,0.0097292]
[1740359009545,0.155559,96426.0,96424.0,0.0097292]
[1740359009749,0.155561,96425.0,96424.0,0.0097292]
[1740359009923,0.155561,96425.0,96424.0,0.0008501]
[1740359011773,0.155561,96425.0,96424.0,0.0018501]
[1740359011980,0.155561,96425.0,96424.0,0.0008501]
[1740359012342,0.155561,96425.0,96424.0,0.0018501]
[1740359013827,0.15556,96426.0,96424.0,0.0018501]
[1740359014344,0.01027308,96427.0,96424.0,0.0018501]
[1740359014345,0.155561,96425.0,96424.0,0.0018501]
[1740359015323,0.155561,96425.0,96424.0,0.0008501]
[1740359016036,0.155561,96425.0,96424.0,0.0018501]
[1740359016279,0.155561,96425.0,96424.0,0.0008501]
[1740359024363,0.305561,96425.0,96424.0,0.0008501]
[1740359024574,2.483694,96425.0,96424.0,0.0008501]
[1740359024785,2.532994,96425.0,96424.0,0.0008501]
[1740359025190,2.514835,96425.0,96424.0,0.0008501]
[1740359025818,2.503011,96425.0,96424.0,0.0008501]
[1740359027929,2.60565669,96425.0,96424.0,0.0008501]
[1740359029161,2.60565669,96425.0,96424.0,1e-07]
[1740359029357,0.354861,96425.0,96424.0,1e-07]
[1740359034236,0.305561,96425.0,96424.0,1e-07]
[1740359034814,0.32181031,96425.0,96424.0,1e-07]
[1740359038566,0.305561,96425.0,96424.0,1e-07]
[1740359044201,0.3072612,96425.0,96424.0,1e-07]
[1740359046898,0.3072612,96425.0,96402.0,0.0008504]
[1740359046899,3.177531,96424.0,96402.0,0.0008504]
[1740359047102,0.155577,96415.0,96402.0,0.0008504]
[1740359047302,2.532007,96415.0,96414.0,4e-07]
[1740359047536,0.305596,96403.0,96402.0,0.0008504]
[1740359048318,0.305596,96403.0,96402.0,0.00090386]
[1740359049767,0.701681,96403.0,96402.0,0.00090386]
[1740359049922,0.696922,96403.0,96402.0,0.00090386]
[1740359053071,0.305596,96403.0,96402.0,0.00090386]
[1740359053494,1.760674,96403.0,96402.0,0.00090386]
[1740359053650,1.678972,96403.0,96402.0,0.00090386]
[1740359054060,1.78161769,96403.0,96402.0,0.00090386]
[1740359054895,1.71923869,96403.0,96402.0,0.00090386]
[1740359055262,1.616593,96403.0,96402.0,0.00090386]
[1740359055553,1.51758,96403.0,96402.0,0.00090386]
[1740359055741,1.4538,96403.0,96402.0,0.00090386]
[1740359056048,1.401946,96403.0,96402.0,0.00090386]
[1740359056262,1.365173,96403.0,96402.0,0.00090386]
[1740359056469,1.328714,96403.0,96402.0,0.00090386]
[1740359056674,1.32201769,96403.0,96402.0,0.00090386]
[1740359056871,1.219372,96403.0,96402.0,0.00090386]
[1740359058938,1.204106,96403.0,96402.0,0.00090386]
[1740359059140,1.142966,96403.0,96402.0,0.00090386]
[1740359059614,1.007105,96403.0,96402.0,0.00090386]
[1740359059819,0.305596,96403.0,96402.0,0.00090386]
[1740359061411,0.307596,96403.0,96402.0,0.00090386]
[1740359061612,0.305596,96403.0,96402.0,0.00090386]
[1740359062038,0.307596,96403.0,96402.0,0.00090386]
[1740359062211,0.941825,96403.0,96402.0,0.00090386]
[1740359067777,1.00271816,96403.0,96402.0,0.00090386]
[1740359070086,0.941825,96403.0,96402.0,0.00090386]
[1740359076244,1.00761387,96403.0,96402.0,8.6e-07]
[1740359076446,0.1556,96401.0,96400.0,5.6e-07]
[1740359078031,0.1556,96401.0,96400.0,0.00100056]
[1740359078240,0.1616,96401.0,96400.0,0.00100056]
[1740359078464,2.593892,96401.0,96400.0,0.00100056]
[1740359079062,2.494403,96401.0,96400.0,0.00100056]
[1740359079511,2.195398,96401.0,96400.0,0.00100056]
[1740359079910,2.29804369,96401.0,96400.0,0.00100056]
[1740359080224,2.195398,96401.0,96400.0,0.00100056]
[1740359080449,1.653926,96401.0,96400.0,0.00100056]
[1740359081427,1.981926,96401.0,96400.0,0.00100056]
[1740359082032,0.4896,96401.0,96400.0,0.00100056]
[1740359082248,2.301711,96401.0,96400.0,0.00100056]
[1740359082654,2.40435669,96401.0,96400.0,0.00100056]
[1740359083549,2.24121669,96401.0,96400.0,0.00100056]
[1740359084088,2.08768969,96401.0,96400.0,0.00100056]
[1740359086111,1.985044,96401.0,96400.0,0.00100056]
[1740359086676,1.99973,96401.0,96400.0,0.00100056]
[1740359086879,1.99373,96401.0,96400.0,5.6e-07]
[1740359087064,0.498286,96401.0,96400.0,5.6e-07]
[1740359087270,0.503286,96401.0,96400.0,5.6e-07]
[1740359087474,0.60593169,96401.0,96400.0,5.6e-07]
[1740359087891,0.60093169,96401.0,96400.0,5.6e-07]
[1740359088119,0.61718606,96401.0,96400.0,5.6e-07]
[1740359088315,0.60693169,96401.0,96400.0,5.6e-07]
[1740359091851,0.504286,96401.0,96400.0,5.6e-07]
[1740359092438,0.52054024,96401.0,96400.0,5.6e-07]
[1740359093085,0.52224064,96401.0,96400.0,5.6e-07]
[1740359098650,0.5059864,96401.0,96400.0,5.6e-07]
[1740359100503,0.4999864,96401.0,96400.0,5.6e-07]
[1740359100901,0.60963209,96401.0,96400.0,0.00100056]
[1740359101124,4.20971509,96401.0,96400.0,0.00100056]
[1740359101503,0.60963209,96401.0,96400.0,0.00100056]
[1740359101672,4.20971509,96401.0,96400.0,0.00100056]
[1740359102092,3.84696209,96401.0,96400.0,0.00100056]
[1740359102896,3.86321674,96401.0,96400.0,0.00100056]
[1740359104288,3.79283674,96401.0,96400.0,0.00100056]
[1740359106673,3.70443474,96401.0,96400.0,0.00100056]
[1740359107475,3.68704374,96401.0,96400.0,0.00100056]
[1740359107759,3.24619974,96401.0,96400.0,0.00100056]
[1740359107960,3.16088774,96401.0,96400.0,0.00100056]
[1740359109932,2.83201905,96401.0,96400.0,0.00100056]
[1740359110097,2.76473005,96401.0,96400.0,0.00100056]
[1740359112808,2.7484754,96401.0,96400.0,0.00100056]
[1740359112950,0.8618724,96401.0,96400.0,0.00100056]
[1740359113161,0.8618724,96401.0,96400.0,0.07990056]
[1740359114887,0.8548724,96401.0,96400.0,0.07890056]
[1740359115138,0.8608724,96401.0,96400.0,0.07990056]
[1740359115875,0.8548724,96401.0,96400.0,0.07890056]
[1740359116275,0.8608724,96401.0,96400.0,0.07990056]
[1740359116505,0.8608724,96401.0,96400.0,0.07890056]
[1740359116707,0.4963004,96401.0,96400.0,0.07890056]
[1740359116925,0.1683004,96401.0,96400.0,0.07890056]
[1740359118348,0.3073004,96401.0,96400.0,0.07890056]
[1740359118551,0.3103004,96401.0,96400.0,0.07890056]
[1740359121158,0.0047004,96401.0,96400.0,0.12770056]
[1740359121571,0.0047004,96401.0,96400.0,0.1357286]
[1740359125911,0.1603004,96401.0,96400.0,0.1357286]
[1740359126537,0.0047004,96401.0,96400.0,0.1357286]
[1740359126834,0.1603004,96401.0,96400.0,0.1357286]
[1740359130801,0.1603004,96401.0,96400.0,0.0869286]
[1740359131007,0.1603004,96401.0,96400.0,0.0080286]
[1740359131211,1.9214704,96401.0,96400.0,5.6e-07]
[1740359131436,0.3103004,96401.0,96400.0,5.6e-07]
[1740359132251,0.41294609,96401.0,96400.0,5.6e-07]
[1740359132473,0.40994609,96401.0,96400.0,5.6e-07]
[1740359132662,0.41394609,96401.0,96400.0,5.6e-07]
[1740359134301,0.3113004,96401.0,96400.0,5.6e-07]
[1740359134443,0.3073004,96401.0,96400.0,5.6e-07]
[1740359134644,0.3123004,96401.0,96400.0,5.6e-07]
[1740359138306,0.3123004,96401.0,96400.0,0.04550056]
[1740359138506,0.1623004,96401.0,96400.0,0.04550056]
[1740359140437,0.0067004,96401.0,96400.0,0.12720056]
[1740359140842,0.0067004,96401.0,96400.0,0.13481849]
[1740359141195,0.0067004,96401.0,96400.0,0.12720056]
[1740359141649,0.0017004,96401.0,96400.0,0.12720056]
[1740359141871,0.0047004,96401.0,96400.0,0.12720056]
[1740359142046,0.1603004,96401.0,96400.0,0.12720056]
[1740359144026,0.1603004,96401.0,96400.0,0.13481849]
[1740359145252,0.1603004,96401.0,96400.0,0.00761849]
[1740359145484,1.1949824,96401.0,96400.0,5.6e-07]
[1740359145684,0.1603004,96401.0,96400.0,5.6e-07]
[1740359148235,0.3103004,96401.0,96400.0,5.6e-07]
[1740359151373,0.3103004,96401.0,96400.0,0.07840056]
[1740359152159,0.1547004,96401.0,96400.0,0.07840056]
[1740359152357,0.1547004,96401.0,96400.0,0.08601139]
[1740359152561,0.3103004,96401.0,96400.0,0.08601139]
[1740359152967,0.3103004,96401.0,96400.0,0.07840056]
[1740359154756,0.3103004,96401.0,96400.0,5.6e-07]
[1740359162487,0.3103004,96401.0,96400.0,0.07890056]
[1740359162488,0.0047004,96401.0,96400.0,0.07890056]
[1740359162899,0.0047004,96401.0,96400.0,0.08650706]
[1740359163277,0.0047004,96401.0,96400.0,0.07890056]
[1740359163495,0.1603004,96401.0,96400.0,0.07890056]
[1740359163694,0.0047004,96401.0,96400.0,0.08650706]
[1740359164104,0.0047004,96401.0,96400.0,0.07890056]
[1740359165991,0.0047004,96401.0,96400.0,0.08650706]
[1740359167216,0.1603004,96401.0,96400.0,0.08650706]
[1740359167625,0.1603004,96401.0,96400.0,0.0897544]
[1740359167828,0.1603004,96401.0,96400.0,0.0821479]
[1740359168031,0.0047004,96401.0,96400.0,0.0821479]
[1740359168660,0.0047004,96401.0,96400.0,0.08975003]
[1740359169538,0.0047004,96401.0,96400.0,0.08650269]
[1740359170915,0.0047004,96401.0,96400.0,0.18914838]
[1740359174251,0.0047004,96401.0,96400.0,0.34474938]
[1740359174470,0.0047004,96401.0,96400.0,0.18914838]
[1740359176249,0.0047004,96401.0,96400.0,0.19239566]
[1740359183222,0.0047004,96401.0,96400.0,0.39429666]
[1740359183545,0.0047004,96401.0,96400.0,0.40208011]
[1740359183880,0.0047004,96401.0,96400.0,0.40727575]
[1740359184526,0.0047004,96401.0,96400.0,0.3994923]
[1740359185143,0.0047004,96401.0,96400.0,0.40727255]
[1740359186989,0.0017004,96401.0,96400.0,0.42671703]
[1740359187410,0.0017004,96401.0,96400.0,0.42771703]
[1740359188556,0.0017004,96401.0,96400.0,0.42671703]
[1740359188959,0.0017004,96401.0,96400.0,0.42871703]
[1740359193285,0.0017004,96401.0,96400.0,0.40927255]
[1740359193855,0.0017004,96401.0,96400.0,0.42871376]
[1740359196919,0.0017004,96401.0,96400.0,0.44325461]
[1740359197633,0.0017004,96401.0,96400.0,0.76855461]
[1740359197843,0.0017004,96401.0,96400.0,0.93855461]
[1740359198045,0.0017004,96401.0,96400.0,1.00650603]
[1740359198497,0.0017004,96401.0,96400.0,1.00450603]
[1740359198702,0.0017004,96401.0,96400.0,1.00650603]
[1740359198907,0.0017004,96401.0,96400.0,1.00450603]
[1740359199339,0.0027004,96401.0,96400.0,1.00650603]
[1740359199741,0.001,96401.0,96400.0,1.00650603]
[1740359200284,0.001,96401.0,96400.0,0.97411512]
[1740359200902,0.001,96401.0,96400.0,0.98199512]
[1740359203257,0.001,96401.0,96400.0,1.21299512]
[1740359210026,0.0027004,96401.0,96400.0,1.20511512]
[1740359210206,0.0027004,96401.0,96400.0,1.21299512]
[1740359216244,0.0027004,96401.0,96400.0,1.32163315]
[1740359217788,0.0027004,96401.0,96400.0,1.30607264]
[1740359218612,0.0027004,96401.0,96400.0,1.41547264]
[1740359218795,0.0027004,96401.0,96400.0,1.30607264]
[1740359219341,0.0027004,96401.0,96400.0,1.32163315]
[1740359220452,0.0027004,96401.0,96400.0,1.35400657]
[1740359222795,4e-07,96401.0,96400.0,1.24536854]
[1740359225274,4e-07,96401.0,96400.0,1.24336854]
[1740359225477,0.0017004,96414.0,96413.0,0.36012085]
[1740359225750,0.00180245,96414.0,96413.0,0.58926654]
[1740359225894,0.00180245,96414.0,96413.0,0.59681638]
[1740359226305,0.00180245,96414.0,96413.0,0.62917884]
[1740359226896,0.00180245,96414.0,96413.0,1.18547884]
[1740359227301,0.00180245,96414.0,96413.0,1.2088196]
[1740359227498,0.00180245,96414.0,96413.0,1.22826081]
[1740359227701,0.0017002,96425.0,96424.0,0.48440285]
[1740359228075,0.0017002,96425.0,96424.0,1.150894]
[1740359228294,0.0017002,96425.0,96424.0,1.16150579]
[1740359228882,0.0017002,96425.0,96424.0,1.18484655]
[1740359229037,0.0027002,96425.0,96424.0,1.04481476]
[1740359229748,0.0027002,96425.0,96424.0,1.05325768]
[1740359230193,0.0027002,96425.0,96424.0,1.07269889]
[1740359231736,0.0027002,96425.0,96424.0,1.05713838]
[1740359232806,0.0027002,96425.0,96424.0,0.82613838]
[1740359233357,0.0027002,96425.0,96424.0,0.80613838]
[1740359233555,0.0027002,96425.0,96424.0,0.82613838]
[1740359234654,0.0027002,96425.0,96424.0,0.84613838]
[1740359234831,0.0027002,96425.0,96424.0,0.92513838]
[1740359234992,0.0017002,96439.0,96437.0,0.17008185]
[1740359235330,0.00212919,96438.0,96437.0,0.2802575]
[1740359235560,0.00212919,96438.0,96437.0,0.6055575]
[1740359235767,0.00212919,96438.0,96437.0,1.1055575]
[1740359236025,0.00212919,96438.0,96437.0,1.1542575]
[1740359236255,0.00212919,96438.0,96437.0,1.19439447]
[1740359236675,0.00212919,96438.0,96437.0,1.19939447]
[1740359236802,0.00212919,96438.0,96437.0,1.21883568]
[1740359237382,3.9e-07,96439.0,96438.0,0.43528085]
[1740359237680,3.9e-07,96439.0,96438.0,0.57028326]
[1740359237927,3.9e-07,96439.0,96438.0,0.57780569]
[1740359238397,3.9e-07,96439.0,96438.0,0.5972469]
[1740359238635,3.9e-07,96439.0,96438.0,0.60753118]
[1740359238876,3.9e-07,96439.0,96438.0,1.16383118]
[1740359239345,3.9e-07,96439.0,96438.0,1.20261486]
[1740359240388,3.9e-07,96439.0,96438.0,1.17025814]
[1740359241211,3.9e-07,96439.0,96438.0,1.16325814]
[1740359241403,3.9e-07,96439.0,96438.0,1.17025814]
[1740359242600,3.9e-07,96439.0,96438.0,1.15469763]
[1740359244172,3.9e-07,96439.0,96438.0,1.16257763]
[1740359244533,3.9e-07,96439.0,96438.0,1.15469763]
[1740359244740,3.9e-07,96439.0,96438.0,1.16257763]
[1740359245153,0.00154585,96448.0,96447.0,0.36006585]
[1740359245350,0.00157084,96448.0,96447.0,0.46271154]
[1740359245680,0.00157084,96448.0,96447.0,0.47021738]
[1740359245898,0.00157084,96448.0,96447.0,0.55349738]
[1740359246463,8.4e-07,96448.0,96447.0,1.10979738]
[1740359246788,8.4e-07,96448.0,96447.0,1.15529738]
[1740359246986,8.4e-07,96448.0,96447.0,1.18251884]
[1740359247193,8.4e-07,96460.0,96459.0,0.43544685]
[1740359247391,8.4e-07,96460.0,96459.0,1.17214467]
[1740359247696,8.4e-07,96460.0,96459.0,1.17962203]
[1740359247873,4.371e-05,96460.0,96459.0,1.17962203]
[1740359248519,3.71e-06,96460.0,96459.0,1.19906324]
[1740359248730,3.71e-06,96460.0,96459.0,1.229404]
[1740359249823,0.0017014,96498.0,96470.0,0.04]
[1740359250030,0.0017014,96498.0,96470.0,0.54077454]
[1740359250278,0.0017014,96498.0,96470.0,0.54842787]
[1740359251053,0.0017014,96498.0,96486.0,0.325462]
[1740359251264,0.0017014,96498.0,96486.0,1.00682854]
[1740359251265,0.00174328,96487.0,96486.0,1.00682854]
[1740359251768,0.00174328,96487.0,96486.0,1.01460879]
[1740359252233,0.00174328,96487.0,96486.0,1.03278339]
[1740359252470,0.00174328,96487.0,96486.0,1.03978339]
[1740359253085,0.00174328,96487.0,96486.0,1.0592246]
[1740359253692,0.00174328,96487.0,96486.0,1.06879612]
[1740359255020,0.00174328,96487.0,96486.0,1.04879612]
[1740359255331,0.00174328,96487.0,96486.0,1.04766752]
[1740359256256,0.00174328,96487.0,96486.0,1.03978752]
[1740359256458,0.00174328,96487.0,96486.0,1.04766752]